bitfinex/quotes_SOLUSD_20250919
["timestamp","ask_amount","ask_price","bid_price","bid_amount"]
[1758248247957,46.97111713,247.04,247.03,0.03]
[1758248248874,46.26111713,247.04,247.03,0.03]
[1758248249060,46.97111713,247.04,247.03,0.03]
[1758248249671,14.98111713,247.04,247.03,0.03]
[1758248249873,46.24111713,247.04,247.03,0.03]
[1758248250176,14.98111713,247.04,247.03,0.74]
[1758248250380,46.24111713,247.04,247.03,0.74]
[1758248251483,46.24111713,247.04,247.03,2.19599364]
[1758248251484,14.69679399,247.04,247.03,2.19599364]
[1758248251691,14.69679399,247.04,247.03,6.24408496]
[1758248251862,45.95679399,247.04,247.03,6.24408496]
[1758248252061,14.69679399,247.04,247.03,6.24408496]
[1758248252384,45.95679399,247.04,247.03,6.24408496]
[1758248253372,1.10119998,247.04,247.03,6.24408496]
[1758248253766,32.36119998,247.04,247.03,6.24408496]
[1758248254883,45.95679399,247.04,247.03,4.78809132]
[1758248255081,45.95679399,247.04,247.03,2.19599364]
[1758248255485,14.69679399,247.04,247.03,0.74]
[1758248255659,45.95679399,247.04,247.03,0.74]
[1758248256278,45.95679399,247.04,247.03,4.78809132]
[1758248258858,44.85559401,247.04,247.03,0.74]
[1758248260378,31.26,247.04,247.03,4.78809132]
[1758248260772,44.85559401,247.04,247.03,0.03]
[1758248261084,44.85559401,247.04,247.03,0.74]
[1758248263989,44.85559401,247.04,247.03,4.78809132]
[1758248264680,13.59559401,247.04,247.03,4.78809132]
[1758248264884,2.11660003,247.07,247.03,6.24408496]
[1758248265064,31.26,247.06,247.05,1.45599364]
[1758248265263,2.11660003,247.07,247.05,2.16599364]
[1758248265465,31.26,247.06,247.05,1.45599364]
[1758248266187,31.26,247.06,247.05,6.21375725]
[1758248266386,31.26,247.06,247.05,18.36959509]
[1758248267392,2.11660003,247.07,247.05,16.91360145]
[1758248267694,2.11660003,247.07,247.05,4.04776361]
[1758248267989,2.11660003,247.07,247.03,10.15022831]
[1758248267990,13.59559401,247.05,247.03,4.07802981]
[1758248268178,31.26,247.04,247.03,4.78802981]
[1758248268587,13.59559401,247.06,247.03,4.78802981]
[1758248268887,31.26,247.05,247.03,4.78802981]
[1758248269396,31.26,247.04,247.03,4.78802981]
[1758248269761,15.87179962,247.06,247.03,4.78802981]
[1758248269968,31.26,247.04,247.03,4.78802981]
[1758248270670,15.87179962,247.06,247.03,0.03]
[1758248270869,31.26,247.04,247.03,0.74]
[1758248271090,31.26,247.04,247.03,0.03]
[1758248271386,44.85559401,247.04,247.03,0.03]
[1758248271785,13.59559401,247.04,247.03,0.03]
[1758248271971,44.85559401,247.04,247.03,0.03]
[1758248272765,45.54559401,247.04,247.03,0.03]
[1758248272970,44.83559401,247.04,247.03,0.03]
[1758248274184,13.59559401,247.04,247.03,0.03]
[1758248274388,44.83559401,247.04,247.03,0.03]
[1758248274588,13.59559401,247.04,247.03,0.03]
[1758248274794,44.83559401,247.04,247.03,0.03]
[1758248275374,13.59559401,247.04,247.03,0.03]
[1758248275592,44.83559401,247.04,247.03,0.03]
[1758248276265,13.59559401,247.04,247.03,0.03]
[1758248276594,44.83559401,247.04,247.03,0.03]
[1758248276975,47.11179962,247.04,247.03,0.03]
[1758248277891,48.9229996,247.04,247.03,0.03]
[1758248279690,49.20732274,247.04,247.03,0.03]
[1758248286593,48.49732274,247.04,247.03,0.03]
[1758248287396,49.20732274,247.04,247.03,0.03]
[1758248293999,17.96732274,247.04,247.03,0.03]
[1758248294309,49.20732274,247.04,247.03,0.03]
[1758248299293,48.2129996,247.04,247.03,0.72]
[1758248299691,48.49732274,247.04,247.03,0.72]
[1758248300215,48.2129996,247.04,247.03,0.72]
[1758248300402,48.49732274,247.04,247.03,0.72]
[1758248301199,48.49732274,247.04,247.03,0.03]
[1758248301397,17.25732274,247.04,247.03,0.03]
[1758248301606,48.49732274,247.04,247.03,0.03]
[1758248306903,77.76432222,247.04,247.03,0.03]
[1758248312826,78.45432222,247.04,247.03,0.03]
[1758248313118,77.76432222,247.04,247.03,0.03]
[1758248313322,78.45432222,247.04,247.03,0.03]
[1758248315916,77.76432222,247.04,247.03,0.03]
[1758248317112,77.76432222,247.04,247.03,0.72]
[1758248318032,77.76432222,247.04,247.03,0.03]
[1758248319539,72.52432222,247.04,247.03,0.72]
[1758248319841,103.74432222,247.04,247.03,0.72]
[1758248320415,72.52432222,247.04,247.03,0.72]
[1758248320619,43.96379347,247.04,247.03,0.72]
[1758248320829,75.18379347,247.04,247.03,0.72]
[1758248321549,43.96379347,247.04,247.03,4.76809132]
[1758248321839,75.18379347,247.04,247.03,4.76809132]
[1758248322245,75.18379347,247.04,247.03,0.72]
[1758248323031,43.96379347,247.04,247.03,0.72]
[1758248323344,43.96379347,247.04,247.03,4.76809132]
[1758248323512,43.96379347,247.04,247.03,7.04429693]
[1758248323713,75.18379347,247.04,247.03,7.04429693]
[1758248324613,75.18379347,247.04,247.03,4.76809132]
[1758248325223,43.96379347,247.04,247.03,4.76809132]
[1758248325429,43.96379347,247.04,247.03,7.04429693]
[1758248325614,30.36819946,247.04,247.03,7.04429693]
[1758248326130,61.58819946,247.04,247.03,7.04429693]
[1758248329118,30.36819946,247.04,247.03,7.04429693]
[1758248329425,61.58819946,247.04,247.03,4.76809132]
[1758248329732,61.58819946,247.04,247.03,7.04429693]
[1758248329936,61.58819946,247.04,247.03,6.22431]
[1758248332944,30.36819946,247.04,247.03,6.22431]
[1758248333241,31.22,247.06,247.03,17.80075699]
[1758248333413,31.22,247.06,247.05,2.91243736]
[1758248333614,31.22,247.06,247.05,3.60243736]
[1758248334041,31.22,247.07,247.05,3.60243736]
[1758248334343,31.22,247.07,247.06,2.14621868]
[1758248334721,31.22,247.08,247.06,16.31281788]
[1758248334922,1e-08,247.09,247.07,2.12621868]
[1758248335251,1e-08,247.09,247.08,1.45621868]
[1758248335441,31.20000001,247.09,247.08,2.15621868]
[1758248336631,31.20000001,247.09,247.08,6.20349081]
[1758248339329,1e-08,247.09,247.08,6.20349081]
[1758248339545,31.20000001,247.09,247.08,6.20349081]
[1758248340255,1e-08,247.09,247.08,6.20349081]
[1758248340749,1e-08,247.09,247.08,18.35637408]
[1758248341627,1e-08,247.09,247.08,17.65637408]
[1758248341924,1e-08,247.09,247.08,4.04727213]
[1758248342123,15.7218127,247.09,247.04,12.15534531]
[1758248342359,13.59559401,247.07,247.04,4.04792746]
[1758248342562,31.2,247.06,247.04,4.04792746]
[1758248343626,31.2,247.06,247.03,4.07809132]
[1758248345244,31.2,247.06,247.03,0.03]
[1758248345448,31.2,247.06,247.03,0.73]
[1758248346034,1e-08,247.09,247.05,1.45621868]
[1758248346229,1e-08,247.09,247.04,0.7]
[1758248346230,1e-08,247.09,247.07,1.45621868]
[1758248346437,31.2,247.08,247.07,1.45621868]
[1758248346627,31.2,247.08,247.07,2.15621868]
[1758248347854,31.2,247.08,247.07,6.20365462]
[1758248350144,31.2,247.08,247.07,4.74743594]
[1758248350348,31.2,247.08,247.07,4.04743594]
[1758248350737,1e-08,247.09,247.07,4.04743594]
[1758248350936,31.2,247.08,247.07,4.04743594]
[1758248351339,13.59559401,247.07,247.05,4.04776361]
[1758248351546,13.59559401,247.07,247.03,4.07800683]
[1758248351547,13.59559401,247.05,247.03,4.07800683]
[1758248351741,45.46559401,247.04,247.03,0.03]
[1758248351945,14.26559401,247.04,247.03,0.03]
[1758248352145,45.46559401,247.04,247.03,0.03]
[1758248352859,14.26559401,247.04,247.03,0.03]
[1758248353039,31.2,247.04,247.03,2.18621868]
[1758248354057,31.2,247.04,247.03,6.23431]
[1758248356452,1e-08,247.09,247.03,16.35453831]
[1758248356759,31.2,247.08,247.04,0.7]
[1758248356948,31.2,247.08,247.07,1.45621868]
[1758248357843,31.2,247.08,247.07,5.50365462]
[1758248360256,45.46559401,247.08,247.07,4.04743594]
[1758248360456,44.79559401,247.08,247.07,4.04743594]
[1758248362265,44.79559401,247.08,247.05,15.62339131]
[1758248366282,44.79559401,247.08,247.06,1.45621868]
[1758248366484,44.79559401,247.08,247.05,14.16717263]
[1758248366485,1e-08,247.09,247.07,2.10621868]
[1758248366790,31.18,247.08,247.07,0.65]
[1758248367957,31.18,247.08,247.07,5.50365462]
[1758248368156,31.18,247.08,247.07,4.04743594]
[1758248370961,31.18,247.08,247.07,1.45621868]
[1758248372678,31.18,247.08,247.07,5.50365462]
[1758248373361,31.24,247.08,247.07,4.04743594]
[1758248373555,31.24,247.08,247.07,5.50365462]
[1758248374860,31.24,247.08,247.07,4.04743594]
[1758248376086,31.96,247.08,247.07,4.04743594]
[1758248376265,14.37559401,247.08,247.07,4.04743594]
[1758248376466,45.55559401,247.08,247.07,4.04743594]
[1758248377391,13.59559401,247.07,247.04,4.04792746]
[1758248377570,0.72,247.06,247.04,4.04792746]
[1758248377889,31.18,247.05,247.04,4.04792746]
[1758248379363,31.18,247.05,247.04,16.27396479]
[1758248379562,31.18,247.05,247.04,26.39438562]
[1758248381994,31.18,247.05,247.04,24.28816694]
[1758248382166,31.18,247.05,247.04,15.62396479]
[1758248384373,45.49559401,247.05,247.04,4.04792746]
[1758248385075,45.49559401,247.05,247.03,0.03]
[1758248385389,14.31559401,247.04,247.03,0.03]
[1758248385763,45.49559401,247.04,247.03,0.03]
[1758248386991,46.95181269,247.04,247.03,0.03]
[1758248387290,47.23613583,247.04,247.03,0.03]
[1758248387785,45.77991715,247.04,247.03,0.03]
[1758248387987,47.23613583,247.04,247.03,0.03]
[1758248388890,45.77991715,247.04,247.03,0.03]
[1758248389074,47.23613583,247.04,247.03,0.03]
[1758248391692,47.29613583,247.04,247.03,0.03]
[1758248391891,48.11721152,247.04,247.03,0.03]
[1758248396700,16.93721152,247.04,247.03,0.03]
[1758248396901,45.83991715,247.04,247.03,0.03]
[1758248397098,48.11721152,247.04,247.03,0.03]
[1758248397894,16.93721152,247.04,247.03,0.03]
[1758248398084,48.11721152,247.04,247.03,0.03]
[1758248398995,16.93721152,247.04,247.03,0.03]
[1758248399200,13.65559401,247.04,247.03,0.68]
[1758248399503,44.97775558,247.04,247.03,0.03]
[1758248400007,45.11991715,247.04,247.03,4.07809132]
[1758248401418,45.11991715,247.04,247.03,0.03]
[1758248405995,13.93991715,247.04,247.03,0.03]
[1758248406187,44.83559401,247.04,247.03,0.68]
[1758248406506,44.83559401,247.04,247.03,0.03]
[1758248407212,45.76991715,247.04,247.03,0.03]
[1758248407410,45.11991715,247.04,247.03,0.03]
[1758248409314,48.04721152,247.04,247.03,0.03]
[1758248413289,13.93991715,247.04,247.03,0.03]
[1758248413503,70.83559401,247.04,247.03,0.03]
[1758248413905,71.11991715,247.04,247.03,0.03]
[1758248414100,73.39721152,247.04,247.03,0.03]
[1758248415012,74.04721152,247.04,247.03,0.03]
[1758248415606,71.11991715,247.04,247.03,0.03]
[1758248416203,73.39721152,247.04,247.03,0.03]
[1758248416826,74.04721152,247.04,247.03,0.03]
[1758248418203,71.76991715,247.04,247.03,0.03]
[1758248418523,74.04721152,247.04,247.03,0.03]
[1758248418724,48.04721152,247.04,247.03,0.03]
[1758248421218,47.39721152,247.04,247.03,0.03]
[1758248421423,47.25504995,247.04,247.03,0.03]
[1758248421619,47.39721152,247.04,247.03,0.03]
[1758248421821,73.39721152,247.04,247.03,0.03]
[1758248425126,48.10721152,247.04,247.03,0.03]
[1758248425903,47.39721152,247.04,247.03,0.03]
[1758248426319,16.21721152,247.04,247.03,0.03]
[1758248426627,47.39721152,247.04,247.03,0.03]
[1758248428310,48.10721152,247.04,247.03,0.03]
[1758248431530,47.39721152,247.04,247.03,0.03]
[1758248431923,48.10721152,247.04,247.03,0.03]
[1758248433232,47.39721152,247.04,247.03,0.03]
[1758248434031,47.39721152,247.04,247.03,0.72]
[1758248434817,47.39721152,247.04,247.03,0.03]
[1758248437819,48.10721152,247.04,247.03,0.03]
[1758248438024,52.15513898,247.04,247.03,0.03]
[1758248438420,55.54843654,247.04,247.03,0.03]
[1758248442539,51.50050908,247.04,247.03,0.03]
[1758248442833,55.54843654,247.04,247.03,0.03]
[1758248449040,39.59559401,247.01,247.0,0.03]
[1758248449234,82.47448414,247.01,247.0,0.03]
[1758248450527,82.47448414,247.01,247.0,0.72]
[1758248450950,82.47448414,247.01,247.0,0.03]
[1758248451445,82.47448414,247.01,247.0,0.72]
[1758248451845,81.65522933,247.01,247.0,0.03]
[1758248452050,81.65522933,247.01,247.0,0.72]
[1758248452634,81.65522933,247.01,247.0,0.03]
[1758248452829,50.47522933,247.01,247.0,0.72]
[1758248453026,81.65522933,247.01,247.0,0.72]
[1758248453664,49.01718977,247.01,247.0,0.72]
[1758248453862,81.65522933,247.01,247.0,0.72]
[1758248454530,80.19718977,247.01,247.0,0.72]
[1758248454732,81.65522933,247.01,247.0,0.72]
[1758248454927,81.65522933,247.01,247.0,0.03]
[1758248455142,82.34522933,247.01,247.0,0.03]
[1758248455350,81.65522933,247.01,247.0,0.03]
[1758248455534,82.33522933,247.01,247.0,0.03]
[1758248455729,81.65522933,247.01,247.0,0.03]
[1758248457338,82.33522933,247.01,247.0,0.03]
[1758248457742,13.87991715,247.0,246.98,0.03]
[1758248457934,46.51795671,246.99,246.98,0.03]
[1758248459151,39.59559401,246.92,246.82,1.62209291]
[1758248459347,72.51795671,246.92,246.84,1.45803956]
[1758248459543,72.51795671,246.92,246.89,4.0503403]
[1758248459724,71.05991715,246.92,246.91,0.77]
[1758248459928,72.51795671,246.92,246.91,0.77]
[1758248460837,71.05991715,246.92,246.91,0.77]
[1758248461171,93.14065674,246.92,246.91,0.77]
[1758248461931,91.68261718,246.92,246.91,0.77]
[1758248462132,65.68261718,246.92,246.91,4.82005872]
[1758248462332,35.96065674,246.92,246.91,0.77]
[1758248462547,67.14065674,246.92,246.91,0.77]
[1758248463259,13.87991715,246.91,246.89,0.67]
[1758248463457,13.87991715,246.89,246.86,0.67]
[1758248463633,13.87991715,246.89,246.84,4.05120725]
[1758248463634,1.7423627,246.87,246.84,4.05120725]
[1758248463833,13.87991715,246.85,246.84,4.05120725]
[1758248464149,13.87991715,246.85,246.84,4.72120725]
[1758248464351,14.98111713,246.85,246.84,4.72120725]
[1758248465351,14.98111713,246.85,246.84,0.67]
[1758248465557,16.43915669,246.85,246.84,0.67]
[1758248465753,14.98111713,246.85,246.84,0.67]
[1758248466057,46.16111713,246.85,246.84,0.67]
[1758248466252,46.16111713,246.85,246.84,4.72120725]
[1758248466555,46.16111713,246.85,246.84,0.67]
[1758248466756,14.98111713,246.85,246.84,4.72120725]
[1758248466946,46.16111713,246.85,246.84,4.72120725]
[1758248468833,46.16111713,246.85,246.84,6.17924681]
[1758248469032,14.98111713,246.85,246.84,6.17924681]
[1758248469357,32.28119998,246.85,246.84,6.17924681]
[1758248470859,32.28119998,246.85,246.84,4.72120725]
[1758248471058,32.28119998,246.85,246.84,6.17924681]
[1758248472156,13.59559401,246.97,246.84,38.0213408]
[1758248472358,13.59559401,246.95,246.93,1.45803956]
[1758248472556,31.32216157,246.94,246.87,5.83215824]
[1758248472856,0.14216157,246.92,246.9,1.45803956]
[1758248473050,45.05991715,246.91,246.9,1.45803956]
[1758248473250,45.05991715,246.91,246.9,6.17826232]
[1758248474264,31.18,246.91,246.9,16.30381922]
[1758248474435,31.46432314,246.91,246.9,16.30381922]
[1758248474966,31.32216157,246.91,246.9,16.30381922]
[1758248475842,13.59559401,246.96,246.9,16.30381922]
[1758248476192,13.59559401,246.96,246.95,1.45803956]
[1758248476335,44.93775558,246.96,246.95,1.45803956]
[1758248476548,45.07991715,246.96,246.95,2.12803956]
[1758248477945,0.28432314,246.95,246.91,5.5080166]
[1758248478144,0.28432314,246.93,246.91,6.1780166]
[1758248478440,44.77559401,246.92,246.91,5.5380166]
[1758248479052,44.77559401,246.92,246.91,6.2080166]
[1758248479257,45.05991715,246.92,246.91,6.2080166]
[1758248479447,31.18,246.92,246.91,6.2080166]
[1758248480149,31.18,246.92,246.91,4.74997704]
[1758248480353,31.18,246.92,246.91,6.2080166]
[1758248481161,31.18,246.92,246.91,4.74997704]
[1758248481467,31.18,246.92,246.91,6.2080166]
[1758248481669,31.22,246.92,246.91,16.33316341]
[1758248481986,0.28432314,246.95,246.91,16.33316341]
[1758248482266,13.59559401,246.93,246.81,0.77]
[1758248482473,0.14216157,246.9,246.82,1.45803956]
[1758248482654,0.14216157,246.87,246.82,1.45803956]
[1758248482976,13.87991715,246.85,246.82,1.45803956]
[1758248483268,13.87991715,246.83,246.81,4.15167072]
[1758248483477,32.52432314,246.82,246.81,4.15167072]
[1758248489579,46.03991715,246.82,246.81,4.82167072]
[1758248489881,46.05991715,246.82,246.81,4.82167072]
[1758248493957,13.87991715,246.82,246.81,4.82167072]
[1758248494184,46.03991715,246.82,246.81,4.82167072]
[1758248494681,45.99940097,246.82,246.81,4.82167072]
[1758248495377,45.99940097,246.82,246.81,4.15167072]
[1758248495758,45.99940097,246.82,246.81,4.82167072]
[1758248495759,32.40380696,246.82,246.81,4.82167072]
[1758248495966,0.24380696,246.82,246.81,4.82167072]
[1758248496277,32.34380696,246.82,246.81,4.82167072]
[1758248496867,0.24380696,246.82,246.81,4.82167072]
[1758248497071,32.34380696,246.82,246.81,4.82167072]
[1758248497863,32.34380696,246.82,246.81,4.15167072]
[1758248498180,32.34380696,246.82,246.81,4.85167072]
[1758248498693,32.34380696,246.82,246.81,4.18167072]
[1758248498870,32.34380696,246.82,246.81,4.85167072]
[1758248499068,45.93940097,246.82,246.81,4.18167072]
[1758248499263,48.06744053,246.82,246.81,0.13]
[1758248499972,46.60940097,246.82,246.81,0.13]
[1758248500169,48.06744053,246.82,246.81,0.13]
[1758248500479,47.43744053,246.82,246.81,0.13]
[1758248500682,47.43744053,246.82,246.81,4.18169968]
[1758248501062,48.10744053,246.82,246.81,4.18169968]
[1758248501257,48.10744053,246.82,246.81,0.13]
[1758248501476,15.96744053,246.82,246.81,4.18169968]
[1758248501672,48.18744053,246.82,246.81,4.18169968]
[1758248502770,46.05940097,246.82,246.81,4.18169968]
[1758248502977,13.83940097,246.82,246.81,4.18169968]
[1758248503177,46.05940097,246.82,246.81,4.18169968]
[1758248503470,13.83940097,246.82,246.81,5.63973924]
[1758248503674,46.05940097,246.82,246.81,4.18169968]
[1758248503876,46.05940097,246.82,246.81,5.63973924]
[1758248506084,13.83940097,246.82,246.81,5.63973924]
[1758248506383,46.01940097,246.82,246.81,5.63973924]
[1758248506583,46.01940097,246.82,246.81,4.18169968]
[1758248506774,46.01940097,246.82,246.81,5.63973924]
[1758248507172,46.01940097,246.82,246.81,4.18169968]
[1758248507972,46.01940097,246.82,246.81,5.63973924]
[1758248509977,46.01940097,246.82,246.81,4.18169968]
[1758248510178,46.68940097,246.82,246.81,0.13]
[1758248510385,46.68940097,246.82,246.81,4.18169968]
[1758248511392,46.68940097,246.82,246.81,0.13]
[1758248511601,14.50940097,246.82,246.81,0.13]
[1758248511769,46.64940097,246.82,246.81,4.18169968]
[1758248512097,45.97940097,246.82,246.81,4.18169968]
[1758248514584,45.95940097,246.82,246.81,4.18169968]
[1758248518278,46.01940097,246.82,246.81,4.18169968]
[1758248520409,13.79775558,246.82,246.81,7.17213383]
[1758248520592,45.71559401,246.82,246.81,7.17213383]
[1758248520993,45.99991715,246.82,246.81,7.17213383]
[1758248521494,45.99991715,246.82,246.81,4.89169968]
[1758248521685,45.99991715,246.82,246.81,7.17213383]
[1758248523100,45.99991715,246.82,246.81,4.18169968]
[1758248525891,45.99991715,246.82,246.81,7.17213383]
[1758248526092,45.93991715,246.82,246.81,4.89169968]
[1758248526294,45.93991715,246.82,246.81,7.17213383]
[1758248526688,0.06,246.85,246.81,7.17213383]
[1758248526689,0.06,246.85,246.81,17.30138305]
[1758248526890,1e-08,246.85,246.84,2.28043415]
[1758248527099,32.04,246.86,246.84,2.28043415]
[1758248527411,32.04,246.86,246.85,2.99043415]
[1758248527591,0.06,246.88,246.85,2.99043415]
[1758248527783,0.06,246.88,246.86,0.71]
[1758248527984,32.38432314,246.88,246.87,6.3311491]
[1758248528206,32.38432314,246.88,246.87,7.0411491]
[1758248528784,13.59559401,246.93,246.87,17.16793647]
[1758248528979,32.30432314,246.92,246.88,0.71]
[1758248529184,45.89991715,246.92,246.91,2.28043415]
[1758248529413,46.55991715,246.92,246.91,2.28043415]
[1758248529584,46.55991715,246.92,246.9,2.28043415]
[1758248530015,45.89991715,246.92,246.91,4.05005872]
[1758248530588,45.89991715,246.92,246.91,6.33049287]
[1758248531990,132.5,246.94,246.91,17.16563968]
[1758248532201,132.5,246.94,246.93,2.28043415]
[1758248532400,13.59559401,246.94,246.93,2.99043415]
[1758248532602,13.73775558,246.94,246.93,2.99043415]
[1758248532906,0.14216157,246.94,246.93,2.99043415]
[1758248533110,0.28432314,246.94,246.93,2.99043415]
[1758248533317,0.28432314,246.94,246.93,7.04016484]
[1758248533699,0.28432314,246.94,246.93,4.75973069]
[1758248533893,0.28432314,246.94,246.93,7.04016484]
[1758248536092,0.28432314,246.94,246.93,4.75973069]
[1758248536292,0.28432314,246.94,246.93,7.04016484]
[1758248536693,0.28432314,246.94,246.93,6.33016484]
[1758248537601,0.20216157,246.94,246.93,7.04016484]
[1758248538820,0.20216157,246.94,246.93,6.33016484]
[1758248538990,32.78216157,246.94,246.93,4.04973069]
[1758248539311,35.06259572,246.94,246.93,4.04973069]
[1758248539531,13.87991715,246.93,246.91,10.12514681]
[1758248539701,45.81991715,246.92,246.91,10.12514681]
[1758248539893,13.87991715,246.91,246.89,4.05038681]
[1758248540089,14.53991715,246.91,246.89,4.05038681]
[1758248540300,45.79991715,246.9,246.89,4.05038681]
[1758248540509,45.79991715,246.9,246.89,6.33082096]
[1758248540690,45.79991715,246.9,246.89,7.04082096]
[1758248540892,45.79991715,246.9,246.89,6.33082096]
[1758248541094,0.06,246.94,246.89,17.16678798]
[1758248541313,45.57559401,246.94,246.93,2.28043415]
[1758248541523,45.85991715,246.94,246.93,7.04016484]
[1758248541692,45.85991715,246.94,246.93,6.33016484]
[1758248542216,45.85991715,246.94,246.93,7.04016484]
[1758248542401,0.06,246.94,246.93,7.04016484]
[1758248543311,1e-08,246.94,246.93,7.04016484]
[1758248545424,1e-08,246.94,246.93,4.04973069]
[1758248545597,1e-08,246.94,246.93,6.33016484]
[1758248547835,1e-08,246.94,246.93,6.99016484]
[1758248558036,1e-08,246.94,246.93,6.33016484]
[1758248558532,1e-08,246.94,246.93,6.99016484]
[1758248560137,1e-08,246.94,246.93,6.33016484]
[1758248560333,1e-08,246.94,246.93,4.04973069]
[1758248560540,1e-08,246.94,246.93,6.99016484]
[1758248565628,1e-08,246.94,246.93,4.70973069]
[1758248565828,1e-08,246.94,246.93,6.99016484]
[1758248567123,0.06,246.97,246.93,17.11449157]
[1758248567335,0.06,246.97,246.96,2.28043415]
[1758248568043,0.06,246.97,246.96,6.32967289]
[1758248571952,0.77,246.97,246.96,6.32967289]
[1758248572859,14.64991715,246.97,246.96,4.04923874]
[1758248573547,13.87991715,246.96,246.94,4.04956669]
[1758248573724,14.58991715,246.95,246.94,4.04956669]
[1758248576543,16.04767693,246.95,246.94,4.04956669]
[1758248576741,14.58991715,246.95,246.94,4.04956669]
[1758248576963,16.04767693,246.95,246.94,4.04956669]
[1758248577331,13.87991715,246.94,246.93,0.03]
[1758248577736,14.58991715,246.94,246.93,0.03]
[1758248577941,13.58991715,246.94,246.93,0.03]
[1758248578337,15.70651718,246.94,246.93,0.03]
[1758248579943,15.99084032,246.94,246.93,0.03]
[1758248581834,15.49084032,246.94,246.93,0.03]
[1758248584355,2.11660003,246.94,246.93,2.18775978]
[1758248585372,2.11660003,246.94,246.93,4.77973069]
[1758248585672,2.11660003,246.94,246.93,6.23749047]
[1758248590663,2.11660003,246.94,246.93,5.53749047]
[1758248591557,2.11660003,246.94,246.93,4.07973069]
[1758248591756,2.11660003,246.94,246.93,5.53749047]
[1758248594252,2.17660003,246.94,246.93,5.53749047]
[1758248596464,16.76651718,246.94,246.93,4.07973069]
[1758248597268,16.76651718,246.94,246.93,0.03]
[1758248601749,18.22427696,246.94,246.93,0.03]
[1758248603274,49.76427696,246.94,246.93,0.03]
[1758248605059,18.22427696,246.94,246.93,0.03]
[1758248605267,49.76427696,246.94,246.93,0.03]
[1758248610384,53.81384365,246.94,246.93,0.03]
[1758248611672,49.76427696,246.94,246.93,0.03]
[1758248611878,75.36510407,246.94,246.93,0.03]
[1758248615484,79.41467076,246.94,246.93,0.03]
[1758248616888,76.2177892,246.94,246.93,0.03]
[1758248617105,74.59510407,246.94,246.93,0.03]
[1758248618489,43.11510407,246.94,246.93,0.03]
[1758248618700,74.61510407,246.94,246.93,0.03]
[1758248619589,75.28510407,246.94,246.93,0.03]
[1758248620966,74.61510407,246.94,246.93,0.03]
[1758248621593,79.33467076,246.94,246.93,0.03]
[1758248624093,47.83467076,246.94,246.93,0.03]
[1758248624291,79.29467076,246.94,246.93,0.03]
[1758248624873,39.59559401,246.91,246.9,0.03]
[1758248625072,72.79767693,246.91,246.9,0.03]
[1758248625288,101.074657,246.91,246.9,0.03]
[1758248626386,73.66471572,246.91,246.9,0.03]
[1758248626795,105.14471572,246.91,246.9,0.03]
[1758248627095,106.76753253,246.91,246.9,0.03]
[1758248630294,110.06616945,246.91,246.9,0.03]
[1758248631185,122.0632534,246.91,246.9,0.03]
[1758248634894,118.76461648,246.91,246.9,0.03]
[1758248635104,118.09461648,246.91,246.9,0.03]
[1758248635497,116.6368567,246.91,246.9,0.03]
[1758248635793,87.43722284,246.91,246.9,0.03]
[1758248635996,118.85722284,246.91,246.9,0.03]
[1758248636389,113.18434731,246.91,246.9,0.03]
[1758248637380,117.23440603,246.91,246.9,0.03]
[1758248642005,115.65403989,246.91,246.9,0.03]
[1758248642190,128.9572132,246.91,246.9,0.03]
[1758248642391,89.84930485,246.91,246.9,0.75]
[1758248642711,118.53311213,246.91,246.9,0.03]
[1758248643505,87.11311213,246.91,246.9,0.03]
[1758248643685,86.90002417,246.91,246.9,0.75]
[1758248644292,87.04218574,246.91,246.9,0.75]
[1758248644489,87.18434731,246.91,246.9,0.75]
[1758248644907,86.90002417,246.91,246.9,0.75]
[1758248645208,87.18434731,246.91,246.9,0.75]
[1758248645586,112.90002417,246.91,246.9,0.75]
[1758248645989,113.18434731,246.91,246.9,0.75]
[1758248646394,113.04218574,246.91,246.9,0.75]
[1758248646595,113.18434731,246.91,246.9,0.75]
[1758248649999,110.90398117,246.91,246.9,0.75]
[1758248650209,113.18434731,246.91,246.9,0.75]
[1758248652703,81.76434731,246.91,246.9,0.75]
[1758248653022,110.90398117,246.91,246.9,0.75]